[Event "Early-Titled-Tuesday-Blitz-February-13-2024"]
[Site "Chess.com"]
[Date "2024.02.13"]
[Round "1"]
[White "Fh2411"]
[Black "WiktoriaPOL"]
[Result "1-0"]
[WhiteElo "2627"]
[BlackElo "2273"]
[TimeControl "180+1"]
[EndTime "8:06:47 PST"]
[Termination "Fh2411 won by checkmate"]

1. d4 {[%clk 0:03:00.9]} 1... Nf6 {[%clk 0:02:59.1]} 2. c4 {[%clk 0:02:58.3]}
2... g6 {[%clk 0:02:59.5]} 3. Nc3 {[%clk 0:02:58.5]} 3... Bg7 {[%clk 0:03:00]}
4. Bg5 {[%clk 0:02:58.4]} 4... O-O {[%clk 0:03:00]} 5. Nf3 {[%clk 0:02:58.7]}
5... d6 {[%clk 0:03:00.1]} 6. e3 {[%clk 0:02:58.5]} 6... Nbd7 {[%clk 0:02:58.4]}
7. Be2 {[%clk 0:02:57.1]} 7... e5 {[%clk 0:02:56.5]} 8. O-O {[%clk 0:02:55.3]}
8... h6 {[%clk 0:02:52.3]} 9. Bh4 {[%clk 0:02:55]} 9... c6 {[%clk 0:02:49]} 10.
Qc2 {[%clk 0:02:50.7]} 10... Qe7 {[%clk 0:02:47]} 11. Rfd1 {[%clk 0:02:41.8]}
11... e4 {[%clk 0:02:43.7]} 12. Nd2 {[%clk 0:02:39.2]} 12... g5 {[%clk 0:02:40]}
13. Bg3 {[%clk 0:02:38.7]} 13... d5 {[%clk 0:02:38.3]} 14. cxd5 {[%clk
0:02:30.1]} 14... cxd5 {[%clk 0:02:38.9]} 15. Nb5 {[%clk 0:02:29.1]} 15... Ne8
{[%clk 0:02:33.4]} 16. Nc7 {[%clk 0:02:15]} 16... Nxc7 {[%clk 0:02:31.2]} 17.
Qxc7 {[%clk 0:02:15.9]} 17... Re8 {[%clk 0:02:26.1]} 18. Rac1 {[%clk 0:02:07.7]}
18... f5 {[%clk 0:02:24]} 19. Bh5 {[%clk 0:01:57.5]} 19... Rd8 {[%clk
0:02:15.7]} 20. Bd6 {[%clk 0:01:47]} 20... Qf6 {[%clk 0:02:12.1]} 21. Nb1 {[%clk
0:01:38.5]} 21... Bf8 {[%clk 0:01:52.6]} 22. Be5 {[%clk 0:01:35.5]} 22... Nxe5
{[%clk 0:01:47.7]} 23. dxe5 {[%clk 0:01:28.1]} 23... Qe7 {[%clk 0:01:44.5]} 24.
Qxe7 {[%clk 0:01:20.6]} 24... Bxe7 {[%clk 0:01:45.4]} 25. Rc7 {[%clk 0:01:21]}
25... Kf8 {[%clk 0:01:38.4]} 26. Nc3 {[%clk 0:01:11.4]} 26... Be6 {[%clk
0:01:27.2]} 27. Nb5 {[%clk 0:01:11]} 27... Rd7 {[%clk 0:01:00.3]} 28. Nd4 {[%clk
0:01:09.9]} 28... Rxc7 {[%clk 0:00:43.9]} 29. Nxe6+ {[%clk 0:01:09.6]} 29... Kg8
{[%clk 0:00:43.8]} 30. Nxc7 {[%clk 0:01:10.3]} 30... Rc8 {[%clk 0:00:43.4]} 31.
Nxd5 {[%clk 0:01:06.9]} 31... Bc5 {[%clk 0:00:41.8]} 32. h3 {[%clk 0:01:00.7]}
32... Kf8 {[%clk 0:00:38.8]} 33. Nf6 {[%clk 0:00:56.4]} 33... Be7 {[%clk
0:00:37.1]} 34. Rd7 {[%clk 0:00:49.4]} 34... b5 {[%clk 0:00:34.6]} 35. Nd5
{[%clk 0:00:46.7]} 35... Bd8 {[%clk 0:00:25.7]} 36. e6 {[%clk 0:00:43.1]} 36...
Rc1+ {[%clk 0:00:22.7]} 37. Kh2 {[%clk 0:00:43.4]} 37... Ba5 {[%clk 0:00:19.4]}
38. e7+ {[%clk 0:00:42.8]} 38... Kg7 {[%clk 0:00:19]} 39. e8=Q# {[%clk
0:00:42.9]} 1-0

[Event "Early-Titled-Tuesday-Blitz-February-13-2024"]
[Site "Chess.com"]
[Date "2024.02.13"]
[Round "1"]
[White "Practical-Play"]
[Black "mary-sanna"]
[Result "1-0"]
[WhiteElo "2584"]
[BlackElo "2165"]
[TimeControl "180+1"]
[EndTime "8:06:48 PST"]
[Termination "Practical-Play won by checkmate"]

1. d4 {[%clk 0:03:00.9]} 1... d5 {[%clk 0:03:00]} 2. Nc3 {[%clk 0:03:00.6]} 2...
Nf6 {[%clk 0:02:59.3]} 3. Bf4 {[%clk 0:03:01.1]} 3... c5 {[%clk 0:02:58.6]} 4.
e4 {[%clk 0:03:00.2]} 4... dxe4 {[%clk 0:02:37]} 5. d5 {[%clk 0:02:56.1]} 5...
Bg4 {[%clk 0:02:27.2]} 6. f3 {[%clk 0:02:50.8]} 6... exf3 {[%clk 0:02:26]} 7.
Nxf3 {[%clk 0:02:47.5]} 7... g6 {[%clk 0:02:22.5]} 8. Bb5+ {[%clk 0:02:30]} 8...
Nbd7 {[%clk 0:02:19.5]} 9. h3 {[%clk 0:02:29.1]} 9... Bxf3 {[%clk 0:02:16.1]}
10. Qxf3 {[%clk 0:02:30]} 10... Bg7 {[%clk 0:02:15.7]} 11. a4 {[%clk 0:02:09.6]}
11... O-O {[%clk 0:02:14.9]} 12. O-O {[%clk 0:02:04.2]} 12... Nb6 {[%clk
0:02:05.1]} 13. Rad1 {[%clk 0:01:53.9]} 13... Nh5 {[%clk 0:02:02.6]} 14. Be3
{[%clk 0:01:48.8]} 14... Qc7 {[%clk 0:01:53.6]} 15. d6 {[%clk 0:01:30.4]} 15...
exd6 {[%clk 0:01:49]} 16. a5 {[%clk 0:01:28.3]} 16... Nd7 {[%clk 0:01:36]} 17.
Nd5 {[%clk 0:01:26.5]} 17... Qxa5 {[%clk 0:01:35.6]} 18. Bxd7 {[%clk 0:01:26.1]}
18... Bxb2 {[%clk 0:01:26.3]} 19. Bh6 {[%clk 0:01:07.3]} 19... Ng7 {[%clk
0:01:19.6]} 20. c3 {[%clk 0:01:00.9]} 20... Qd8 {[%clk 0:01:08.5]} 21. Rde1
{[%clk 0:00:51.8]} 21... Kh8 {[%clk 0:01:02.7]} 22. Bxg7+ {[%clk 0:00:47.3]}
22... Kxg7 {[%clk 0:01:02.4]} 23. Re7 {[%clk 0:00:48.2]} 23... Kg8 {[%clk
0:00:34.7]} 24. Qf6 {[%clk 0:00:38.4]} 24... c4 {[%clk 0:00:20.4]} 25. Be6
{[%clk 0:00:28.7]} 25... Bxc3 {[%clk 0:00:05.5]} 26. Bxf7+ {[%clk 0:00:26.5]}
26... Rxf7 {[%clk 0:00:04.5]} 27. Qxf7+ {[%clk 0:00:27.4]} 27... Kh8 {[%clk
0:00:04.7]} 28. Qxh7# {[%clk 0:00:28.3]} 1-0

[Event "Early-Titled-Tuesday-Blitz-February-13-2024"]
[Site "Chess.com"]
[Date "2024.02.13"]
[Round "1"]
[White "remuloaguiarfreitas"]
[Black "jk13"]
[Result "0-1"]
[WhiteElo "2304"]
[BlackElo "2651"]
[TimeControl "180+1"]
[EndTime "8:06:49 PST"]
[Termination "jk13 won by resignation"]

1. d4 {[%clk 0:03:00.9]} 1... Nf6 {[%clk 0:02:59]} 2. Bg5 {[%clk 0:03:00.6]}
2... Ne4 {[%clk 0:02:58.6]} 3. Bf4 {[%clk 0:03:00.6]} 3... Nc6 {[%clk
0:02:58.2]} 4. f3 {[%clk 0:03:00.4]} 4... Nf6 {[%clk 0:02:58.1]} 5. e4 {[%clk
0:02:59.9]} 5... d5 {[%clk 0:02:58.8]} 6. e5 {[%clk 0:02:58.6]} 6... Nd7 {[%clk
0:02:59.5]} 7. Be3 {[%clk 0:02:56.9]} 7... Nb6 {[%clk 0:02:59.9]} 8. Nd2 {[%clk
0:02:56.3]} 8... Bf5 {[%clk 0:03:00.3]} 9. h4 {[%clk 0:02:54.9]} 9... h6 {[%clk
0:02:58.7]} 10. g4 {[%clk 0:02:54]} 10... Bh7 {[%clk 0:02:58.6]} 11. Nb3 {[%clk
0:02:54.2]} 11... e6 {[%clk 0:02:58.3]} 12. Bd3 {[%clk 0:02:53.9]} 12... Bxd3
{[%clk 0:02:56]} 13. Qxd3 {[%clk 0:02:53.1]} 13... Be7 {[%clk 0:02:56.9]} 14.
Bf2 {[%clk 0:02:50.9]} 14... Nc4 {[%clk 0:02:53.5]} 15. O-O-O {[%clk 0:02:48.2]}
15... Nb4 {[%clk 0:02:53.8]} 16. Qe2 {[%clk 0:02:39.1]} 16... Nxa2+ {[%clk
0:02:53.9]} 17. Kb1 {[%clk 0:02:38.7]} 17... Nb4 {[%clk 0:02:52.9]} 18. Nd2
{[%clk 0:02:33.6]} 18... Nxd2+ {[%clk 0:02:43.8]} 19. Qxd2 {[%clk 0:02:32.9]}
19... Qd7 {[%clk 0:02:44.7]} 20. c3 {[%clk 0:02:31.1]} 20... Nc6 {[%clk
0:02:43.7]} 21. Ne2 {[%clk 0:02:31.3]} 21... Na5 {[%clk 0:02:43.7]} 22. Nc1
{[%clk 0:02:29.4]} 22... Qb5 {[%clk 0:02:42.4]} 23. Qc2 {[%clk 0:02:26.8]} 23...
Nc4 {[%clk 0:02:40.8]} 24. Qb3 {[%clk 0:02:25.6]} 24... Qxb3 {[%clk 0:02:36.9]}
25. Nxb3 {[%clk 0:02:25.4]} 25... b6 {[%clk 0:02:36.7]} 26. Nd2 {[%clk
0:02:25.2]} 26... Nxd2+ {[%clk 0:02:35.7]} 27. Rxd2 {[%clk 0:02:25.4]} 27... a5
{[%clk 0:02:35.3]} 28. f4 {[%clk 0:02:25.1]} 28... h5 {[%clk 0:02:35]} 29. g5
{[%clk 0:02:17.4]} 29... g6 {[%clk 0:02:32.7]} 30. Kc2 {[%clk 0:02:17.2]} 30...
Kd7 {[%clk 0:02:28.9]} 31. Ra1 {[%clk 0:02:17.3]} 31... c5 {[%clk 0:02:20.7]}
32. Kd3 {[%clk 0:02:16.8]} 32... Kc6 {[%clk 0:02:19.7]} 33. b3 {[%clk 0:02:15]}
33... Ra6 {[%clk 0:02:16.1]} 34. c4 {[%clk 0:02:09.4]} 34... Rha8 {[%clk
0:02:12.4]} 35. Rc2 {[%clk 0:02:07.3]} 35... a4 {[%clk 0:02:05.7]} 36. cxd5+
{[%clk 0:02:06.1]} 36... Kxd5 {[%clk 0:02:05.7]} 37. bxa4 {[%clk 0:02:00.6]}
37... Rxa4 {[%clk 0:02:02.8]} 38. Rxa4 {[%clk 0:01:58.3]} 38... Rxa4 {[%clk
0:02:03.7]} 39. dxc5 {[%clk 0:01:58.7]} 39... bxc5 {[%clk 0:01:50]} 40. Be3
{[%clk 0:01:56.1]} 40... c4+ {[%clk 0:01:41.6]} 41. Ke2 {[%clk 0:01:55]} 41...
Bb4 {[%clk 0:01:41.2]} 42. Bd2 {[%clk 0:01:51.3]} 42... Bc5 {[%clk 0:01:23]} 43.
Bc3 {[%clk 0:01:48.5]} 43... Ke4 {[%clk 0:01:21.7]} 44. Bd2 {[%clk 0:01:44.2]}
44... Bd4 {[%clk 0:01:18.2]} 45. Bc1 {[%clk 0:01:23]} 45... c3 {[%clk 0:01:15]}
46. Kd1 {[%clk 0:01:12.6]} 46... Kd3 {[%clk 0:01:14.3]} 47. Rh2 {[%clk
0:01:07.7]} 47... Ra1 {[%clk 0:01:04.2]} 48. Rh3+ {[%clk 0:01:06.4]} 48... Kc4
{[%clk 0:00:58]} 49. Rh2 {[%clk 0:00:54.9]} 49... Be3 {[%clk 0:00:52.4]} 50. Rc2
{[%clk 0:00:52.3]} 50... Kd3 {[%clk 0:00:48]} 0-1

[Event "Early-Titled-Tuesday-Blitz-February-13-2024"]
[Site "Chess.com"]
[Date "2024.02.13"]
[Round "1"]
[White "temiksmozg"]
[Black "Maria_Severina"]
[Result "1-0"]
[WhiteElo "2595"]
[BlackElo "2152"]
[TimeControl "180+1"]
[EndTime "8:06:50 PST"]
[Termination "temiksmozg won by resignation"]

1. e4 {[%clk 0:02:55.6]} 1... e5 {[%clk 0:02:59.5]} 2. Nf3 {[%clk 0:02:44.2]}
2... Nc6 {[%clk 0:02:59.4]} 3. Bb5 {[%clk 0:02:36.8]} 3... a6 {[%clk 0:02:57.9]}
4. Ba4 {[%clk 0:02:36.3]} 4... Nf6 {[%clk 0:02:57]} 5. O-O {[%clk 0:02:35.3]}
5... Be7 {[%clk 0:02:56.2]} 6. Re1 {[%clk 0:02:33.7]} 6... b5 {[%clk 0:02:55.6]}
7. Bb3 {[%clk 0:02:32.2]} 7... O-O {[%clk 0:02:54.2]} 8. a4 {[%clk 0:02:31.3]}
8... b4 {[%clk 0:02:49.4]} 9. a5 {[%clk 0:01:56.4]} 9... d6 {[%clk 0:02:47]} 10.
c3 {[%clk 0:01:54.7]} 10... Rb8 {[%clk 0:02:28.5]} 11. Bc4 {[%clk 0:01:51.1]}
11... Bb7 {[%clk 0:02:07]} 12. d4 {[%clk 0:01:46.6]} 12... exd4 {[%clk
0:02:01.6]} 13. cxd4 {[%clk 0:01:45.7]} 13... d5 {[%clk 0:02:01.2]} 14. exd5
{[%clk 0:01:41]} 14... Nxd5 {[%clk 0:01:59.9]} 15. Nbd2 {[%clk 0:01:41.4]} 15...
Nf6 {[%clk 0:01:27.1]} 16. Nb3 {[%clk 0:01:39.7]} 16... Bd6 {[%clk 0:01:25.3]}
17. Bg5 {[%clk 0:01:35.6]} 17... h6 {[%clk 0:01:23.9]} 18. Bh4 {[%clk
0:01:35.2]} 18... Be7 {[%clk 0:01:10.6]} 19. Qd3 {[%clk 0:01:32.2]} 19... Re8
{[%clk 0:01:00.7]} 20. d5 {[%clk 0:01:19.7]} 20... Na7 {[%clk 0:00:44.5]} 21.
Rad1 {[%clk 0:01:05.5]} 21... Nb5 {[%clk 0:00:43.1]} 22. Ne5 {[%clk 0:00:48.9]}
22... Qc8 {[%clk 0:00:28.9]} 23. Nxf7 {[%clk 0:00:45.5]} 23... Nd6 {[%clk
0:00:22.3]} 24. Nxd6 {[%clk 0:00:41.7]} 24... cxd6 {[%clk 0:00:22.1]} 25. Nd4
{[%clk 0:00:40.4]} 25... Bxd5 {[%clk 0:00:18.8]} 26. Bxd5+ {[%clk 0:00:40]}
26... Nxd5 {[%clk 0:00:18.8]} 27. Qb3 {[%clk 0:00:40]} 27... Bxh4 {[%clk
0:00:18.9]} 28. Qxd5+ {[%clk 0:00:39.8]} 28... Kh8 {[%clk 0:00:19.5]} 29. Nf5
{[%clk 0:00:38]} 29... Bf6 {[%clk 0:00:19.3]} 30. Nxd6 {[%clk 0:00:37.7]} 30...
Rxe1+ {[%clk 0:00:19.3]} 31. Rxe1 {[%clk 0:00:38.6]} 31... Qf8 {[%clk
0:00:18.8]} 32. b3 {[%clk 0:00:30.2]} 32... Rd8 {[%clk 0:00:18.8]} 33. Nf7+
{[%clk 0:00:30.1]} 1-0

[Event "Early-Titled-Tuesday-Blitz-February-13-2024"]
[Site "Chess.com"]
[Date "2024.02.13"]
[Round "1"]
[White "Korchmar_Vasiliy"]
[Black "EsmeraldasAnderson03"]
[Result "1-0"]
[WhiteElo "2733"]
[BlackElo "2404"]
[TimeControl "180+1"]
[EndTime "8:06:51 PST"]
[Termination "Korchmar_Vasiliy won by resignation"]

1. e4 {[%clk 0:03:00.9]} 1... c5 {[%clk 0:02:57.3]} 2. d4 {[%clk 0:03:00.5]}
2... cxd4 {[%clk 0:02:57.1]} 3. Qxd4 {[%clk 0:03:01.4]} 3... Nc6 {[%clk
0:02:54.5]} 4. Qd3 {[%clk 0:03:01.6]} 4... g6 {[%clk 0:02:51.2]} 5. Nc3 {[%clk
0:03:01.5]} 5... Bg7 {[%clk 0:02:50.7]} 6. Be2 {[%clk 0:03:01.8]} 6... Nf6
{[%clk 0:02:48.9]} 7. Nf3 {[%clk 0:03:02.2]} 7... d6 {[%clk 0:02:47.9]} 8. O-O
{[%clk 0:03:02.2]} 8... O-O {[%clk 0:02:48.3]} 9. Nd5 {[%clk 0:03:02.9]} 9...
Nxd5 {[%clk 0:02:27]} 10. exd5 {[%clk 0:03:03.8]} 10... Ne5 {[%clk 0:02:26.8]}
11. Nxe5 {[%clk 0:03:03.6]} 11... Bxe5 {[%clk 0:02:27.7]} 12. c3 {[%clk
0:03:04.2]} 12... Bf5 {[%clk 0:02:24.4]} 13. Qb5 {[%clk 0:03:01.1]} 13... Qd7
{[%clk 0:02:15.9]} 14. a4 {[%clk 0:02:58.5]} 14... Rfc8 {[%clk 0:01:34.4]} 15.
Be3 {[%clk 0:02:55.8]} 15... a6 {[%clk 0:01:06.1]} 16. Qb3 {[%clk 0:02:50.3]}
16... Bf6 {[%clk 0:00:19]} 17. a5 {[%clk 0:02:45.1]} 17... Qd8 {[%clk 0:00:19]}
18. Ra2 {[%clk 0:02:34]} 18... Rab8 {[%clk 0:00:17.5]} 19. Ba7 {[%clk
0:02:33.5]} 19... Ra8 {[%clk 0:00:17.8]} 20. Be3 {[%clk 0:02:25.7]} 20... Rab8
{[%clk 0:00:14.5]} 21. h3 {[%clk 0:02:26.1]} 21... Bd7 {[%clk 0:00:14.3]} 22.
Bb6 {[%clk 0:02:22.5]} 22... Qf8 {[%clk 0:00:14.3]} 23. Ba7 {[%clk 0:02:23.2]}
23... Ra8 {[%clk 0:00:13.9]} 24. Qxb7 {[%clk 0:02:23.9]} 24... Qd8 {[%clk
0:00:10.4]} 25. Bb6 {[%clk 0:02:22.4]} 25... Rcb8 {[%clk 0:00:08.4]} 26. Qxa8
{[%clk 0:02:15.1]} 26... Rxa8 {[%clk 0:00:08.9]} 27. Bxd8 {[%clk 0:02:14.5]}
27... Rxd8 {[%clk 0:00:09.8]} 28. Bxa6 {[%clk 0:02:14.3]} 28... Ra8 {[%clk
0:00:09.9]} 29. Bb7 {[%clk 0:02:14.3]} 29... Ra7 {[%clk 0:00:09.7]} 30. a6
{[%clk 0:02:14.9]} 30... Bb5 {[%clk 0:00:09.2]} 31. Rc1 {[%clk 0:02:12.8]} 31...
Bc4 {[%clk 0:00:09.3]} 32. Ra4 {[%clk 0:02:13.1]} 32... Bd3 {[%clk 0:00:09.7]}
33. b4 {[%clk 0:02:10.4]} 33... Bg5 {[%clk 0:00:09.3]} 34. Rca1 {[%clk
0:02:08.9]} 34... Bd2 {[%clk 0:00:08.7]} 35. b5 {[%clk 0:02:08.9]} 35... Bxb5
{[%clk 0:00:08.9]} 36. Rb4 {[%clk 0:02:00.6]} 36... Bxc3 {[%clk 0:00:08.3]} 37.
Rxb5 {[%clk 0:01:58.8]} 37... Bxa1 {[%clk 0:00:08.8]} 38. Rb4 {[%clk 0:01:50.5]}
38... Kg7 {[%clk 0:00:06.2]} 39. Rc4 {[%clk 0:01:49.7]} 39... Kf6 {[%clk
0:00:05.2]} 40. Rc6 {[%clk 0:01:45.1]} 40... Bd4 {[%clk 0:00:04.9]} 41. Kf1
{[%clk 0:01:44.5]} 41... h5 {[%clk 0:00:04.1]} 42. Ke2 {[%clk 0:01:43.4]} 42...
Bc5 {[%clk 0:00:04.9]} 43. f3 {[%clk 0:01:35.6]} 43... Bg1 {[%clk 0:00:05.8]}
44. Kd3 {[%clk 0:01:35.6]} 44... Bc5 {[%clk 0:00:06.1]} 45. Kc4 {[%clk 0:01:36]}
45... Bg1 {[%clk 0:00:06.1]} 46. Kb5 {[%clk 0:01:36.3]} 46... Bf2 {[%clk
0:00:06.7]} 47. Rc2 {[%clk 0:01:36.4]} 47... Be3 {[%clk 0:00:06.5]} 48. Kc6
{[%clk 0:01:36.7]} 48... Kf5 {[%clk 0:00:05.8]} 49. Re2 {[%clk 0:01:35.7]} 49...
Kf4 {[%clk 0:00:04.8]} 50. Kc7 {[%clk 0:01:36.2]} 50... e5 {[%clk 0:00:03.2]}
51. Kxd6 {[%clk 0:01:33.7]} 51... f5 {[%clk 0:00:02.9]} 52. Kc7 {[%clk
0:01:31.8]} 52... e4 {[%clk 0:00:03.2]} 53. fxe4 {[%clk 0:01:32.6]} 53... fxe4
{[%clk 0:00:03.9]} 54. d6 {[%clk 0:01:33.2]} 54... Bd4 {[%clk 0:00:01.8]} 55.
Rxe4+ {[%clk 0:01:34.1]} 55... Kf5 {[%clk 0:00:01]} 56. Rxd4 {[%clk 0:01:35]}
56... Ke6 {[%clk 0:00:01.2]} 57. d7 {[%clk 0:01:34.2]} 57... Kf5 {[%clk
0:00:02.1]} 58. d8=Q {[%clk 0:01:34.2]} 1-0

[Event "Early-Titled-Tuesday-Blitz-February-13-2024"]
[Site "Chess.com"]
[Date "2024.02.13"]
[Round "1"]
[White "Zavgorodniy_Sergiy"]
[Black "lacafi"]
[Result "1-0"]
[WhiteElo "2599"]
[BlackElo "2211"]
[TimeControl "180+1"]
[EndTime "8:06:52 PST"]
[Termination "Zavgorodniy_Sergiy won by resignation"]

1. d4 {[%clk 0:03:00.3]} 1... f5 {[%clk 0:02:57.3]} 2. c4 {[%clk 0:03:00.2]}
2... Nf6 {[%clk 0:02:57.4]} 3. Nf3 {[%clk 0:03:00.1]} 3... g6 {[%clk 0:02:58]}
4. g3 {[%clk 0:03:00]} 4... Bg7 {[%clk 0:02:58.7]} 5. Bg2 {[%clk 0:03:00.2]}
5... O-O {[%clk 0:02:59.5]} 6. O-O {[%clk 0:02:59.6]} 6... d6 {[%clk 0:03:00.3]}
7. Nc3 {[%clk 0:02:59.2]} 7... Nc6 {[%clk 0:03:01]} 8. d5 {[%clk 0:02:57.8]}
8... Na5 {[%clk 0:03:01.8]} 9. Qd3 {[%clk 0:02:56.3]} 9... c5 {[%clk 0:03:02.1]}
10. b3 {[%clk 0:02:41.7]} 10... a6 {[%clk 0:02:59.2]} 11. Rb1 {[%clk 0:02:38.4]}
11... Rb8 {[%clk 0:02:57.4]} 12. a4 {[%clk 0:02:37.2]} 12... Bd7 {[%clk
0:02:49.2]} 13. Nd2 {[%clk 0:02:15.2]} 13... Ng4 {[%clk 0:02:39.9]} 14. Qc2
{[%clk 0:02:12.5]} 14... b5 {[%clk 0:02:32.2]} 15. axb5 {[%clk 0:02:11.5]} 15...
axb5 {[%clk 0:02:32.2]} 16. Nd1 {[%clk 0:01:45.6]} 16... bxc4 {[%clk 0:02:20.6]}
17. bxc4 {[%clk 0:01:46.5]} 17... Rxb1 {[%clk 0:02:15.8]} 18. Qxb1 {[%clk
0:01:47.4]} 18... Qc7 {[%clk 0:02:11.4]} 19. Qc2 {[%clk 0:01:46.1]} 19... Rb8
{[%clk 0:02:09.1]} 20. h3 {[%clk 0:01:45.9]} 20... Ne5 {[%clk 0:02:07]} 21. f4
{[%clk 0:01:46.2]} 21... Nf7 {[%clk 0:02:05.9]} 22. Bb2 {[%clk 0:01:44.2]} 22...
Qb6 {[%clk 0:01:57]} 23. Bxg7 {[%clk 0:01:42.7]} 23... Kxg7 {[%clk 0:01:57.6]}
24. Qc3+ {[%clk 0:01:38.7]} 24... Kg8 {[%clk 0:01:56.4]} 25. Ne3 {[%clk
0:01:33.8]} 25... Qb4 {[%clk 0:01:46.4]} 26. Rc1 {[%clk 0:01:33.4]} 26... Nb3
{[%clk 0:01:27.1]} 27. Qxb4 {[%clk 0:01:19.8]} 27... Rxb4 {[%clk 0:01:28]} 28.
Nxb3 {[%clk 0:01:19.4]} 28... Rxb3 {[%clk 0:01:28.7]} 29. Kf2 {[%clk 0:01:19]}
29... Nd8 {[%clk 0:01:07]} 30. Ra1 {[%clk 0:01:14]} 30... Nb7 {[%clk 0:01:07.1]}
31. Bf1 {[%clk 0:01:08.5]} 31... Kf7 {[%clk 0:00:56.4]} 32. Ra2 {[%clk
0:01:07.9]} 32... e6 {[%clk 0:00:49.6]} 33. dxe6+ {[%clk 0:01:06.6]} 33... Bxe6
{[%clk 0:00:49.8]} 34. Bg2 {[%clk 0:01:06.3]} 34... h6 {[%clk 0:00:38]} 35. Ra7
{[%clk 0:01:05.1]} 35... Bc8 {[%clk 0:00:38.3]} 36. Nd5 {[%clk 0:00:58.5]} 36...
Ke6 {[%clk 0:00:36.1]} 37. Nc7+ {[%clk 0:00:54]} 37... Kf6 {[%clk 0:00:34.9]}
38. Nb5 {[%clk 0:00:51.4]} 38... Be6 {[%clk 0:00:14.3]} 39. Rxb7 {[%clk
0:00:48.9]} 39... Bxc4 {[%clk 0:00:14.6]} 40. Nxd6 {[%clk 0:00:49]} 40... Rxb7
{[%clk 0:00:08.5]} 41. Nxb7 {[%clk 0:00:49.9]} 1-0

[Event "Early-Titled-Tuesday-Blitz-February-13-2024"]
[Site "Chess.com"]
[Date "2024.02.13"]
[Round "1"]
[White "Zheenbekov86"]
[Black "HamedWafa4"]
[Result "0-1"]
[WhiteElo "2419"]
[BlackElo "2747"]
[TimeControl "180+1"]
[EndTime "8:06:53 PST"]
[Termination "HamedWafa4 won on time"]

1. e4 {[%clk 0:02:56.2]} 1... e5 {[%clk 0:02:58.7]} 2. Nf3 {[%clk 0:02:56.1]}
2... Nc6 {[%clk 0:02:56.6]} 3. Bb5 {[%clk 0:02:55.6]} 3... a6 {[%clk 0:02:56.3]}
4. Ba4 {[%clk 0:02:55.2]} 4... Nf6 {[%clk 0:02:56.5]} 5. O-O {[%clk 0:02:55.2]}
5... Be7 {[%clk 0:02:56.2]} 6. Re1 {[%clk 0:02:54.9]} 6... b5 {[%clk 0:02:56.7]}
7. Bb3 {[%clk 0:02:54.9]} 7... O-O {[%clk 0:02:57.6]} 8. h3 {[%clk 0:02:49.5]}
8... d6 {[%clk 0:02:56.2]} 9. c3 {[%clk 0:02:48.3]} 9... Nb8 {[%clk 0:02:56.4]}
10. d4 {[%clk 0:02:47]} 10... Nbd7 {[%clk 0:02:57.3]} 11. Nbd2 {[%clk
0:02:45.3]} 11... Bb7 {[%clk 0:02:55.5]} 12. Bc2 {[%clk 0:02:45.1]} 12... h6
{[%clk 0:02:52.3]} 13. Nf1 {[%clk 0:02:43.2]} 13... Re8 {[%clk 0:02:51.5]} 14.
Ng3 {[%clk 0:02:43.1]} 14... Bf8 {[%clk 0:02:52.1]} 15. a4 {[%clk 0:02:26.9]}
15... c5 {[%clk 0:02:48.2]} 16. d5 {[%clk 0:02:25.7]} 16... c4 {[%clk
0:02:46.9]} 17. Nf5 {[%clk 0:02:25.6]} 17... Kh7 {[%clk 0:02:45.2]} 18. g4
{[%clk 0:02:14.8]} 18... g6 {[%clk 0:02:42.5]} 19. Nxh6 {[%clk 0:02:10.4]} 19...
Bxh6 {[%clk 0:02:42.4]} 20. g5 {[%clk 0:02:10.4]} 20... Bg7 {[%clk 0:02:39.4]}
21. gxf6 {[%clk 0:02:10.2]} 21... Bxf6 {[%clk 0:02:39.7]} 22. Nh2 {[%clk
0:02:04.7]} 22... Kg7 {[%clk 0:02:27.5]} 23. Ng4 {[%clk 0:01:58]} 23... Bg5
{[%clk 0:02:26.3]} 24. axb5 {[%clk 0:01:46.6]} 24... axb5 {[%clk 0:02:25.5]} 25.
Rxa8 {[%clk 0:01:46.8]} 25... Bxa8 {[%clk 0:02:25.7]} 26. Bd2 {[%clk 0:01:37.9]}
26... Rh8 {[%clk 0:02:24.1]} 27. Kg2 {[%clk 0:01:37.3]} 27... Bb7 {[%clk
0:02:23.8]} 28. Qc1 {[%clk 0:01:36.7]} 28... Bxd2 {[%clk 0:02:24.1]} 29. Qxd2
{[%clk 0:01:36.7]} 29... Qh4 {[%clk 0:02:24.8]} 30. Re3 {[%clk 0:01:32.8]} 30...
Bc8 {[%clk 0:02:22.7]} 31. Rg3 {[%clk 0:01:31.7]} 31... Nf6 {[%clk 0:02:21.7]}
32. Nxf6 {[%clk 0:01:16.3]} 32... Bxh3+ {[%clk 0:02:19.2]} 33. Kg1 {[%clk
0:01:09]} 33... Kxf6 {[%clk 0:02:19.1]} 34. Bd1 {[%clk 0:00:57.8]} 34... Bg4
{[%clk 0:02:02.4]} 35. Bf3 {[%clk 0:00:53.3]} 35... Bxf3 {[%clk 0:01:56.6]} 36.
Rxf3+ {[%clk 0:00:52.7]} 36... Kg7 {[%clk 0:01:57.3]} 37. Kf1 {[%clk 0:00:45.3]}
37... Qg4 {[%clk 0:01:51.8]} 38. Qe3 {[%clk 0:00:34.4]} 38... Rh1+ {[%clk
0:01:50.1]} 39. Ke2 {[%clk 0:00:33.8]} 39... Qg1 {[%clk 0:01:51]} 40. Qd2 {[%clk
0:00:29.3]} 40... Qf1+ {[%clk 0:01:50.6]} 41. Ke3 {[%clk 0:00:29.2]} 41... Qe1+
{[%clk 0:01:50.6]} 42. Qxe1 {[%clk 0:00:22]} 42... Rxe1+ {[%clk 0:01:51.5]} 43.
Kd2 {[%clk 0:00:22.1]} 43... Rxe4 {[%clk 0:01:52.4]} 44. Rh3 {[%clk 0:00:20.5]}
44... Rf4 {[%clk 0:01:49.4]} 45. Ke2 {[%clk 0:00:20.1]} 45... e4 {[%clk
0:01:41.6]} 46. Rh1 {[%clk 0:00:20]} 46... Rf5 {[%clk 0:01:41.2]} 47. Ke3 {[%clk
0:00:17.7]} 47... Rxd5 {[%clk 0:01:35]} 48. Kxe4 {[%clk 0:00:17]} 48... Rd2
{[%clk 0:01:35.1]} 0-1